[Event "*** Titled Tuesday Blitz"]
[Site "Chess.com"]
[Date "2020.04.07"]
[Round "2"]
[White "MartinCerveny"]
[Black "davigator"]
[Result "1-0"]
[WhiteElo "2626"]
[BlackElo "2327"]
[TimeControl "180+1"]
[EndTime "13:19:09 PDT"]
[Termination "MartinCerveny won by resignation"]

1. d4 {[%clk 0:03:00.9]} 1... Nf6 {[%clk 0:02:59.3]} 2. Nf3 {[%clk 0:03:00.8]}
2... e6 {[%clk 0:02:59]} 3. g3 {[%clk 0:03:00.1]} 3... b5 {[%clk 0:02:58.1]} 4.
Bg2 {[%clk 0:02:59.7]} 4... Bb7 {[%clk 0:02:58.2]} 5. O-O {[%clk 0:02:59.8]}
5... Be7 {[%clk 0:02:58]} 6. Re1 {[%clk 0:02:59.7]} 6... d5 {[%clk 0:02:57.7]}
7. Bf4 {[%clk 0:02:56.4]} 7... O-O {[%clk 0:02:57.2]} 8. Nbd2 {[%clk 0:02:49.1]}
8... c5 {[%clk 0:02:56.3]} 9. c3 {[%clk 0:02:49.1]} 9... Nbd7 {[%clk 0:02:55.3]}
10. h3 {[%clk 0:02:49]} 10... a5 {[%clk 0:02:52.9]} 11. g4 {[%clk 0:02:48.2]}
11... b4 {[%clk 0:02:45.3]} 12. Nf1 {[%clk 0:02:47.5]} 12... Qb6 {[%clk
0:02:41.5]} 13. Ng3 {[%clk 0:02:45.4]} 13... Ne4 {[%clk 0:02:40.8]} 14. Nxe4
{[%clk 0:02:23.4]} 14... dxe4 {[%clk 0:02:40]} 15. Nd2 {[%clk 0:02:23.2]} 15...
f5 {[%clk 0:02:39.8]} 16. e3 {[%clk 0:02:16.6]} 16... cxd4 {[%clk 0:02:35.3]}
17. cxd4 {[%clk 0:02:14.5]} 17... Bd5 {[%clk 0:02:34.3]} 18. Bf1 {[%clk
0:02:08.5]} 18... Rac8 {[%clk 0:02:32.8]} 19. b3 {[%clk 0:02:04.5]} 19... g5
{[%clk 0:02:27.7]} 20. Bh2 {[%clk 0:02:00.8]} 20... Nf6 {[%clk 0:02:22.4]} 21.
Nc4 {[%clk 0:01:59.2]} 21... Qd8 {[%clk 0:02:16.3]} 22. Ne5 {[%clk 0:01:58.2]}
22... Bd6 {[%clk 0:02:12.4]} 23. Bc4 {[%clk 0:01:53.4]} 23... Qe7 {[%clk
0:02:08.8]} 24. gxf5 {[%clk 0:01:47.5]} 24... exf5 {[%clk 0:02:08]} 25. Kh1
{[%clk 0:01:47.3]} 25... Kh8 {[%clk 0:02:06.4]} 26. Rg1 {[%clk 0:01:46.3]} 26...
Rg8 {[%clk 0:02:05]} 27. Rc1 {[%clk 0:01:45.9]} 27... Rcf8 {[%clk 0:01:48.2]}
28. Qe2 {[%clk 0:01:43.5]} 28... Qe6 {[%clk 0:01:47.3]} 29. Bxd5 {[%clk
0:01:33.8]} 29... Nxd5 {[%clk 0:01:46.7]} 30. Rc6 {[%clk 0:01:30.3]} 30... f4
{[%clk 0:01:46.1]} 31. exf4 {[%clk 0:01:28]} 31... gxf4 {[%clk 0:01:44.6]} 32.
Qxe4 {[%clk 0:01:20.3]} 32... Rxg1+ {[%clk 0:01:42.9]} 33. Kxg1 {[%clk
0:01:20.2]} 33... Ne7 {[%clk 0:01:37]} 34. Rxd6 {[%clk 0:01:02.6]} 34... Qxd6
{[%clk 0:01:34.6]} 35. Bxf4 {[%clk 0:01:02.5]} 35... Qf6 {[%clk 0:01:31.1]} 36.
Bg3 {[%clk 0:01:00.4]} 36... Rg8 {[%clk 0:01:25.9]} 37. Kh2 {[%clk 0:00:56.4]}
37... Nf5 {[%clk 0:01:25.6]} 38. Nd7 {[%clk 0:00:54.4]} 38... Qg6 {[%clk
0:01:19.5]} 39. Be5+ {[%clk 0:00:52.1]} 39... Ng7 {[%clk 0:01:19.4]} 40. Qh4
{[%clk 0:00:41]} 40... h6 {[%clk 0:01:18.5]} 41. Nf6 {[%clk 0:00:38.8]} 41...
Rf8 {[%clk 0:01:17.6]} 42. Ng4 {[%clk 0:00:38.1]} 42... Kh7 {[%clk 0:01:16.8]}
43. Nf6+ {[%clk 0:00:35.2]} 43... Kh8 {[%clk 0:01:16.1]} 44. Nh5 {[%clk
0:00:34.9]} 44... Rf7 {[%clk 0:01:07.5]} 45. Bxg7+ {[%clk 0:00:34.1]} 45... Rxg7
{[%clk 0:01:07.2]} 46. Nxg7 {[%clk 0:00:33.4]} 46... Qxg7 {[%clk 0:01:07.2]} 47.
Qf4 {[%clk 0:00:33.3]} 47... Qd7 {[%clk 0:01:01.3]} 48. Qe5+ {[%clk 0:00:32.8]}
48... Kh7 {[%clk 0:00:59.2]} 49. d5 {[%clk 0:00:32.8]} 49... Qf7 {[%clk
0:00:56.7]} 50. Kg3 {[%clk 0:00:30.9]} 50... Qg6+ {[%clk 0:00:55.3]} 51. Kf3
{[%clk 0:00:30.2]} 51... Qf7+ {[%clk 0:00:54.7]} 52. Ke3 {[%clk 0:00:29.8]}
52... Qa7+ {[%clk 0:00:50.5]} 53. Qd4 {[%clk 0:00:28.1]} 53... Qe7+ {[%clk
0:00:49.6]} 54. Qe4+ {[%clk 0:00:28]} 54... Qxe4+ {[%clk 0:00:47.4]} 55. Kxe4
{[%clk 0:00:28.9]} 55... Kg6 {[%clk 0:00:47.5]} 56. Ke5 {[%clk 0:00:29.1]} 56...
Kf7 {[%clk 0:00:47.4]} 57. Kd6 {[%clk 0:00:29.2]} 57... Ke8 {[%clk 0:00:46.9]}
58. Kc7 {[%clk 0:00:29.2]} 1-0

[Event "*** Titled Tuesday Blitz"]
[Site "Chess.com"]
[Date "2020.04.07"]
[Round "2"]
[White "Gordima"]
[Black "bazar-wokzal"]
[Result "1/2-1/2"]
[WhiteElo "2804"]
[BlackElo "2545"]
[TimeControl "180+1"]
[EndTime "13:19:10 PDT"]
[Termination "Game drawn by repetition"]

1. d4 {[%clk 0:02:59.9]} 1... Nf6 {[%clk 0:02:59.1]} 2. c4 {[%clk 0:02:59.7]}
2... Nc6 {[%clk 0:02:58.3]} 3. Nf3 {[%clk 0:02:54.4]} 3... e6 {[%clk 0:02:58.5]}
4. g3 {[%clk 0:02:53.1]} 4... Bb4+ {[%clk 0:02:57.6]} 5. Nbd2 {[%clk 0:02:48]}
5... a5 {[%clk 0:02:57.4]} 6. Bg2 {[%clk 0:02:47.1]} 6... d6 {[%clk 0:02:57.7]}
7. O-O {[%clk 0:02:47.6]} 7... e5 {[%clk 0:02:57.9]} 8. d5 {[%clk 0:02:44.4]}
8... Nb8 {[%clk 0:02:55.8]} 9. a3 {[%clk 0:02:41.2]} 9... Bc5 {[%clk 0:02:55.4]}
10. b3 {[%clk 0:02:40.6]} 10... e4 {[%clk 0:02:42.8]} 11. Ne1 {[%clk 0:02:23.1]}
11... e3 {[%clk 0:02:42.5]} 12. fxe3 {[%clk 0:02:23.4]} 12... Bxe3+ {[%clk
0:02:41.7]} 13. Kh1 {[%clk 0:02:24]} 13... Ng4 {[%clk 0:02:36]} 14. Ne4 {[%clk
0:02:18.5]} 14... f5 {[%clk 0:02:27.4]} 15. Bxe3 {[%clk 0:02:13.4]} 15... Nxe3
{[%clk 0:02:26]} 16. Qd4 {[%clk 0:02:13.6]} 16... Nxf1 {[%clk 0:02:25.6]} 17.
Qxg7 {[%clk 0:02:13.5]} 17... Rf8 {[%clk 0:02:24]} 18. Ng5 {[%clk 0:01:29.8]}
18... Ne3 {[%clk 0:02:19]} 19. Nxh7 {[%clk 0:01:00.5]} 19... Qe7 {[%clk
0:02:16.6]} 20. Qg6+ {[%clk 0:00:51.9]} 20... Qf7 {[%clk 0:02:02.2]} 21. Nxf8
{[%clk 0:00:47.7]} 21... Nxg2 {[%clk 0:02:01.3]} 22. Nxg2 {[%clk 0:00:42.2]}
22... Kxf8 {[%clk 0:01:59.7]} 23. Qg5 {[%clk 0:00:37.7]} 23... Na6 {[%clk
0:01:45]} 24. Qd8+ {[%clk 0:00:33.2]} 24... Kg7 {[%clk 0:01:38.4]} 25. Rf1
{[%clk 0:00:26.1]} 25... Qf6 {[%clk 0:01:21.1]} 26. Qe8 {[%clk 0:00:25.9]} 26...
Qe5 {[%clk 0:01:06.7]} 27. Qd8 {[%clk 0:00:22.5]} 27... b5 {[%clk 0:00:47.4]}
28. Nf4 {[%clk 0:00:14.3]} 28... bxc4 {[%clk 0:00:43.8]} 29. Qg5+ {[%clk
0:00:08.2]} 29... Kf7 {[%clk 0:00:30.7]} 30. Qh5+ {[%clk 0:00:08.4]} 30... Kg8
{[%clk 0:00:21.7]} 31. Qg6+ {[%clk 0:00:08.9]} 31... Qg7 {[%clk 0:00:12.1]} 32.
Qe8+ {[%clk 0:00:07.2]} 32... Qf8 {[%clk 0:00:12.1]} 33. Qg6+ {[%clk 0:00:07.4]}
33... Qg7 {[%clk 0:00:12.2]} 34. Qe8+ {[%clk 0:00:07.4]} 34... Qf8 {[%clk
0:00:12.2]} 35. Qg6+ {[%clk 0:00:03.5]} 35... Qg7 {[%clk 0:00:12.3]} 1/2-1/2

[Event "*** Titled Tuesday Blitz"]
[Site "Chess.com"]
[Date "2020.04.07"]
[Round "2"]
[White "Dyadya81"]
[Black "kayrakamer"]
[Result "1-0"]
[WhiteElo "2730"]
[BlackElo "2472"]
[TimeControl "180+1"]
[EndTime "13:19:12 PDT"]
[Termination "Dyadya81 won on time"]

1. e4 {[%clk 0:03:00.9]} 1... c5 {[%clk 0:02:59.5]} 2. Nc3 {[%clk 0:02:59.8]}
2... d6 {[%clk 0:02:57.1]} 3. Nf3 {[%clk 0:02:59.6]} 3... a6 {[%clk 0:02:54.3]}
4. d4 {[%clk 0:02:59.4]} 4... cxd4 {[%clk 0:02:54.2]} 5. Nxd4 {[%clk 0:03:00.3]}
5... g6 {[%clk 0:02:54.5]} 6. h4 {[%clk 0:02:54]} 6... h5 {[%clk 0:02:51.8]} 7.
Bc4 {[%clk 0:02:49.1]} 7... Bg7 {[%clk 0:02:47.4]} 8. Be3 {[%clk 0:02:35.8]}
8... Nf6 {[%clk 0:02:44.9]} 9. f3 {[%clk 0:02:31.3]} 9... Nbd7 {[%clk
0:02:41.1]} 10. Qd2 {[%clk 0:02:24.5]} 10... b5 {[%clk 0:02:33.1]} 11. Bb3
{[%clk 0:02:23.6]} 11... Bb7 {[%clk 0:02:33]} 12. O-O-O {[%clk 0:02:11.6]} 12...
Rc8 {[%clk 0:02:14.2]} 13. Kb1 {[%clk 0:02:08]} 13... Nc5 {[%clk 0:01:57.1]} 14.
Rhe1 {[%clk 0:02:02.2]} 14... b4 {[%clk 0:01:31.6]} 15. Nd5 {[%clk 0:01:38.7]}
15... a5 {[%clk 0:00:58.4]} 16. Nxf6+ {[%clk 0:00:56.2]} 16... Bxf6 {[%clk
0:00:59.3]} 17. Bg5 {[%clk 0:00:48.3]} 17... Bxg5 {[%clk 0:00:39.5]} 18. Qxg5
{[%clk 0:00:45.5]} 18... Qc7 {[%clk 0:00:17.6]} 19. e5 {[%clk 0:00:35.3]} 19...
dxe5 {[%clk 0:00:09.9]} 20. Nb5 {[%clk 0:00:34.5]} 20... Qb6 {[%clk 0:00:03]}
21. Rxe5 {[%clk 0:00:20.6]} 21... O-O {[%clk 0:00:03.1]} 22. Nd4 {[%clk
0:00:16]} 22... a4 {[%clk 0:00:02.6]} 23. Bc4 {[%clk 0:00:11]} 23... b3 {[%clk
0:00:02.7]} 24. axb3 {[%clk 0:00:10.4]} 24... axb3 {[%clk 0:00:03.6]} 25. cxb3
{[%clk 0:00:10.9]} 25... Nd7 {[%clk 0:00:02.9]} 26. Re6 {[%clk 0:00:09.9]} 26...
Rxc4 {[%clk 0:00:01.9]} 27. Rxb6 {[%clk 0:00:09.1]} 27... Rxd4 {[%clk
0:00:01.2]} 28. Rxd4 {[%clk 0:00:07.6]} 28... Nxb6 {[%clk 0:00:02.1]} 29. Rb4
{[%clk 0:00:07.7]} 1-0

[Event "*** Titled Tuesday Blitz"]
[Site "Chess.com"]
[Date "2020.04.07"]
[Round "2"]
[White "onnoelgersma"]
[Black "AnonymousBread"]
[Result "1-0"]
[WhiteElo "2310"]
[BlackElo "2516"]
[TimeControl "180+1"]
[EndTime "13:19:12 PDT"]
[Termination "onnoelgersma won on time"]

1. e4 {[%clk 0:03:00.9]} 1... e5 {[%clk 0:03:00.9]} 2. Nf3 {[%clk 0:03:00.8]}
2... Nc6 {[%clk 0:03:00.5]} 3. Bb5 {[%clk 0:03:01.3]} 3... Nge7 {[%clk
0:02:59.9]} 4. O-O {[%clk 0:03:00.7]} 4... g6 {[%clk 0:02:59.4]} 5. c3 {[%clk
0:03:00.2]} 5... Bg7 {[%clk 0:02:59.5]} 6. d4 {[%clk 0:03:00.7]} 6... exd4
{[%clk 0:03:00.4]} 7. cxd4 {[%clk 0:03:01.6]} 7... d5 {[%clk 0:03:01.1]} 8. e5
{[%clk 0:03:01.3]} 8... O-O {[%clk 0:03:01.6]} 9. Nc3 {[%clk 0:03:01.3]} 9...
Bg4 {[%clk 0:03:02.2]} 10. Be3 {[%clk 0:02:56.3]} 10... f6 {[%clk 0:03:02.2]}
11. exf6 {[%clk 0:02:47.6]} 11... Bxf6 {[%clk 0:03:03.1]} 12. Be2 {[%clk
0:02:47.3]} 12... Nf5 {[%clk 0:03:00.9]} 13. h3 {[%clk 0:02:39]} 13... Bxf3
{[%clk 0:02:59.3]} 14. Bxf3 {[%clk 0:02:39.9]} 14... Ncxd4 {[%clk 0:02:59.6]}
15. Bxd5+ {[%clk 0:02:38.4]} 15... Kg7 {[%clk 0:03:00.2]} 16. Bxd4 {[%clk
0:02:32.5]} 16... Nxd4 {[%clk 0:03:01.1]} 17. Bc4 {[%clk 0:02:31.5]} 17... c6
{[%clk 0:02:59]} 18. Ne4 {[%clk 0:02:26.4]} 18... Qb6 {[%clk 0:02:57.2]} 19. Rb1
{[%clk 0:02:24.9]} 19... Rae8 {[%clk 0:02:57]} 20. Nxf6 {[%clk 0:02:08.6]} 20...
Rxf6 {[%clk 0:02:56.8]} 21. Qg4 {[%clk 0:02:09]} 21... Qc5 {[%clk 0:02:21.1]}
22. Rbc1 {[%clk 0:02:00.4]} 22... h5 {[%clk 0:02:20.9]} 23. Qh4 {[%clk
0:01:18.3]} 23... Qe5 {[%clk 0:01:00.1]} 24. Rce1 {[%clk 0:00:53.5]} 24... Qxe1
{[%clk 0:00:50]} 25. Rxe1 {[%clk 0:00:54.4]} 25... Rxe1+ {[%clk 0:00:50.6]} 26.
Kh2 {[%clk 0:00:55.3]} 26... c5 {[%clk 0:00:43]} 27. Qg3 {[%clk 0:00:54.8]}
27... Re7 {[%clk 0:00:37.2]} 28. Qg5 {[%clk 0:00:48.9]} 28... b6 {[%clk
0:00:33]} 29. Qd5 {[%clk 0:00:47.3]} 29... Rfe6 {[%clk 0:00:15.5]} 30. f4 {[%clk
0:00:40.9]} 30... a5 {[%clk 0:00:11]} 31. a4 {[%clk 0:00:40.6]} 31... Nf5 {[%clk
0:00:07.4]} 32. Qd8 {[%clk 0:00:32.8]} 32... Re8 {[%clk 0:00:03.5]} 33. Qc7+
{[%clk 0:00:27.7]} 33... R8e7 {[%clk 0:00:03.8]} 34. Qb8 {[%clk 0:00:17.7]}
34... Re8 {[%clk 0:00:03.8]} 35. Qa7+ {[%clk 0:00:17.7]} 35... R8e7 {[%clk
0:00:04.2]} 36. Qa6 {[%clk 0:00:17.8]} 36... Rd6 {[%clk 0:00:04.3]} 37. Qa8
{[%clk 0:00:17.1]} 1-0

[Event "*** Titled Tuesday Blitz"]
[Site "Chess.com"]
[Date "2020.04.07"]
[Round "2"]
[White "CalinGheorghiu"]
[Black "SergioGarciaFuentes"]
[Result "1-0"]
[WhiteElo "2452"]
[BlackElo "2194"]
[TimeControl "180+1"]
[EndTime "13:19:13 PDT"]
[Termination "CalinGheorghiu won on time"]

1. e4 {[%clk 0:03:00.9]} 1... c5 {[%clk 0:02:58.6]} 2. Nf3 {[%clk 0:03:00.5]}
2... e6 {[%clk 0:02:56.1]} 3. g3 {[%clk 0:03:00.1]} 3... Nc6 {[%clk 0:02:55.2]}
4. Bg2 {[%clk 0:02:59.7]} 4... g6 {[%clk 0:02:55.2]} 5. O-O {[%clk 0:02:56]}
5... Bg7 {[%clk 0:02:55.2]} 6. c3 {[%clk 0:02:54.2]} 6... e5 {[%clk 0:02:51.1]}
7. a4 {[%clk 0:02:50.7]} 7... d6 {[%clk 0:02:50.3]} 8. Na3 {[%clk 0:02:49.5]}
8... Nge7 {[%clk 0:02:46.6]} 9. Nc2 {[%clk 0:02:48.7]} 9... O-O {[%clk
0:02:42.5]} 10. d4 {[%clk 0:02:48.6]} 10... cxd4 {[%clk 0:02:25.9]} 11. cxd4
{[%clk 0:02:47.2]} 11... Bg4 {[%clk 0:02:23.8]} 12. d5 {[%clk 0:02:40.2]} 12...
Na5 {[%clk 0:02:07.4]} 13. h3 {[%clk 0:02:32.4]} 13... Bd7 {[%clk 0:01:56.5]}
14. Qd3 {[%clk 0:02:27.2]} 14... Rc8 {[%clk 0:01:46.6]} 15. Ne3 {[%clk
0:02:23.2]} 15... b6 {[%clk 0:01:41.6]} 16. b4 {[%clk 0:02:21.8]} 16... Nb7
{[%clk 0:01:40.4]} 17. Bb2 {[%clk 0:02:21.6]} 17... a5 {[%clk 0:01:35.3]} 18. b5
{[%clk 0:02:18.3]} 18... Nc5 {[%clk 0:01:29.7]} 19. Qb1 {[%clk 0:02:18.2]} 19...
Rc7 {[%clk 0:01:12.8]} 20. Nc4 {[%clk 0:02:06.6]} 20... Nc8 {[%clk 0:01:12.5]}
21. Ne1 {[%clk 0:02:03.5]} 21... f5 {[%clk 0:01:01.1]} 22. Ba3 {[%clk
0:01:49.4]} 22... fxe4 {[%clk 0:00:35.9]} 23. Bxc5 {[%clk 0:01:47.8]} 23... Rxc5
{[%clk 0:00:36.8]} 24. Qxe4 {[%clk 0:01:47]} 24... Bf5 {[%clk 0:00:26.3]} 25.
Qe2 {[%clk 0:01:47.2]} 25... Qc7 {[%clk 0:00:25.1]} 26. Rc1 {[%clk 0:01:39.3]}
26... g5 {[%clk 0:00:24.5]} 27. g4 {[%clk 0:01:37.7]} 27... Bg6 {[%clk
0:00:23.9]} 28. Nf3 {[%clk 0:01:14.2]} 28... Rf4 {[%clk 0:00:22.9]} 29. Nfd2
{[%clk 0:01:12.1]} 29... Rd4 {[%clk 0:00:20.4]} 30. Qe3 {[%clk 0:01:04.7]} 30...
h6 {[%clk 0:00:18.3]} 31. Nb3 {[%clk 0:00:58.5]} 31... Rdxc4 {[%clk 0:00:17.1]}
32. Nxc5 {[%clk 0:00:58]} 32... Rxc5 {[%clk 0:00:17.5]} 33. Rxc5 {[%clk
0:00:57.5]} 33... Qxc5 {[%clk 0:00:17.5]} 34. Qd2 {[%clk 0:00:55.8]} 34... Qd4
{[%clk 0:00:15.4]} 35. Qc1 {[%clk 0:00:52.8]} 35... Qc5 {[%clk 0:00:15.6]} 36.
Qd2 {[%clk 0:00:53]} 36... Qd4 {[%clk 0:00:15.6]} 37. Qe2 {[%clk 0:00:48.9]}
37... Ne7 {[%clk 0:00:15.3]} 38. Rc1 {[%clk 0:00:48.9]} 38... Qxa4 {[%clk
0:00:13.6]} 39. Rc7 {[%clk 0:00:46.6]} 39... Bf8 {[%clk 0:00:11.3]} 40. Qf3
{[%clk 0:00:45.1]} 40... Qa1+ {[%clk 0:00:08.7]} 41. Kh2 {[%clk 0:00:44.7]}
41... e4 {[%clk 0:00:09.6]} 42. Qg3 {[%clk 0:00:41.8]} 42... Qd4 {[%clk
0:00:08.7]} 43. Qxd6 {[%clk 0:00:39.5]} 43... Qxf2 {[%clk 0:00:07.4]} 44. Rxe7
{[%clk 0:00:39]} 44... Bxe7 {[%clk 0:00:02.3]} 45. Qxg6+ {[%clk 0:00:38.9]}
45... Kh8 {[%clk 0:00:01.4]} 46. Qxh6+ {[%clk 0:00:38.5]} 1-0

[Event "*** Titled Tuesday Blitz"]
[Site "Chess.com"]
[Date "2020.04.07"]
[Round "2"]
[White "Walter_White_Poland"]
[Black "SavelievAlexei"]
[Result "0-1"]
[WhiteElo "2111"]
[BlackElo "2413"]
[TimeControl "180+1"]
[EndTime "13:19:13 PDT"]
[Termination "SavelievAlexei won on time"]

1. Nf3 {[%clk 0:03:00.9]} 1... c5 {[%clk 0:02:54.4]} 2. c4 {[%clk 0:03:00.4]}
2... Nc6 {[%clk 0:02:54.3]} 3. g3 {[%clk 0:03:00.4]} 3... e5 {[%clk 0:02:54.4]}
4. Bg2 {[%clk 0:03:00.3]} 4... g6 {[%clk 0:02:54.6]} 5. Nc3 {[%clk 0:02:59.5]}
5... Bg7 {[%clk 0:02:55]} 6. d3 {[%clk 0:02:59.3]} 6... Nge7 {[%clk 0:02:55.4]}
7. O-O {[%clk 0:02:59.1]} 7... d6 {[%clk 0:02:55.1]} 8. Ne1 {[%clk 0:02:58.8]}
8... Be6 {[%clk 0:02:52]} 9. Nc2 {[%clk 0:02:57.2]} 9... d5 {[%clk 0:02:51.8]}
10. cxd5 {[%clk 0:02:56.8]} 10... Nxd5 {[%clk 0:02:52.7]} 11. Nxd5 {[%clk
0:02:55.1]} 11... Bxd5 {[%clk 0:02:53.6]} 12. Bxd5 {[%clk 0:02:54.9]} 12... Qxd5
{[%clk 0:02:54.5]} 13. Ne3 {[%clk 0:02:55]} 13... Qd7 {[%clk 0:02:52.4]} 14. Nc4
{[%clk 0:02:45.8]} 14... h5 {[%clk 0:02:46.8]} 15. h4 {[%clk 0:02:43.7]} 15...
O-O {[%clk 0:02:46.2]} 16. Be3 {[%clk 0:02:41.4]} 16... b6 {[%clk 0:02:45.7]}
17. Qa4 {[%clk 0:02:28.9]} 17... Rad8 {[%clk 0:02:42.7]} 18. Rfc1 {[%clk
0:01:57.5]} 18... Qe6 {[%clk 0:02:33.3]} 19. a3 {[%clk 0:01:53.6]} 19... f5
{[%clk 0:02:11.1]} 20. Bg5 {[%clk 0:01:50.5]} 20... Bf6 {[%clk 0:02:11.6]} 21.
b4 {[%clk 0:01:44.1]} 21... Bxg5 {[%clk 0:02:10.4]} 22. hxg5 {[%clk 0:01:43.8]}
22... f4 {[%clk 0:02:10.5]} 23. bxc5 {[%clk 0:01:27.2]} 23... Nd4 {[%clk
0:01:56.6]} 24. Qd1 {[%clk 0:00:53]} 24... f3 {[%clk 0:01:50]} 25. exf3 {[%clk
0:00:31.9]} 25... Rxf3 {[%clk 0:01:47.3]} 26. Ne3 {[%clk 0:00:12.2]} 26... Rdf8
{[%clk 0:01:37.1]} 27. Ra2 {[%clk 0:00:10.8]} 27... bxc5 {[%clk 0:01:33.2]} 28.
Rb2 {[%clk 0:00:08.8]} 28... Qh3 {[%clk 0:01:22.7]} 29. Ng2 {[%clk 0:00:08.4]}
29... R3f5 {[%clk 0:00:26.8]} 30. Nh4 {[%clk 0:00:08.3]} 30... Rxg5 {[%clk
0:00:21.4]} 31. Rc4 {[%clk 0:00:06.9]} 31... Qxh4 {[%clk 0:00:20.5]} 32. Rxd4
{[%clk 0:00:04.1]} 32... Qxd4 {[%clk 0:00:19.3]} 33. Qb3+ {[%clk 0:00:04.1]}
33... Kh8 {[%clk 0:00:17.8]} 34. Re2 {[%clk 0:00:02.5]} 34... Rxg3+ {[%clk
0:00:16.9]} 35. Kh2 {[%clk 0:00:01.9]} 35... Rxf2+ {[%clk 0:00:15.5]} 36. Kxg3
{[%clk 0:00:01.4]} 36... Qf4+ {[%clk 0:00:15.6]} 0-1

[Event "*** Titled Tuesday Blitz"]
[Site "Chess.com"]
[Date "2020.04.07"]
[Round "2"]
[White "Eltarolo"]
[Black "swisspower96"]
[Result "1/2-1/2"]
[WhiteElo "2335"]
[BlackElo "2673"]
[TimeControl "180+1"]
[EndTime "13:19:14 PDT"]
[Termination "Game drawn by repetition"]

1. e4 {[%clk 0:03:00.9]} 1... c5 {[%clk 0:02:55.5]} 2. Nf3 {[%clk 0:03:00.5]}
2... Nc6 {[%clk 0:02:53.1]} 3. Bb5 {[%clk 0:03:00.1]} 3... g6 {[%clk 0:02:52.7]}
4. Bxc6 {[%clk 0:02:59.6]} 4... dxc6 {[%clk 0:02:53.6]} 5. O-O {[%clk 0:03:00]}
5... Bg7 {[%clk 0:02:53.9]} 6. h3 {[%clk 0:02:58.7]} 6... Nf6 {[%clk 0:02:49.3]}
7. d3 {[%clk 0:02:58.8]} 7... Nd7 {[%clk 0:02:49]} 8. Nc3 {[%clk 0:02:58.3]}
8... e5 {[%clk 0:02:45.2]} 9. a4 {[%clk 0:02:57.8]} 9... a5 {[%clk 0:02:42.1]}
10. Nh2 {[%clk 0:02:55.3]} 10... Nf8 {[%clk 0:02:41.3]} 11. f4 {[%clk
0:02:52.3]} 11... exf4 {[%clk 0:02:41.3]} 12. Bxf4 {[%clk 0:02:52]} 12... Ne6
{[%clk 0:02:39.4]} 13. Be3 {[%clk 0:02:46.9]} 13... h5 {[%clk 0:02:23.3]} 14.
Qd2 {[%clk 0:02:44.8]} 14... Nd4 {[%clk 0:02:02.3]} 15. Rf2 {[%clk 0:02:44.4]}
15... Be6 {[%clk 0:02:01.6]} 16. Raf1 {[%clk 0:02:35.7]} 16... Qb6 {[%clk
0:01:49.2]} 17. Qc1 {[%clk 0:02:07.5]} 17... O-O-O {[%clk 0:01:35.7]} 18. Nf3
{[%clk 0:02:03.3]} 18... f6 {[%clk 0:01:27]} 19. Ne2 {[%clk 0:01:51.5]} 19... f5
{[%clk 0:01:12.6]} 20. Ng5 {[%clk 0:01:42.5]} 20... Bg8 {[%clk 0:01:12.8]} 21.
Bxd4 {[%clk 0:01:34.7]} 21... cxd4 {[%clk 0:01:12.4]} 22. exf5 {[%clk
0:01:33.7]} 22... gxf5 {[%clk 0:01:12.5]} 23. Rxf5 {[%clk 0:01:33.6]} 23... h4
{[%clk 0:01:06.1]} 24. Nf7 {[%clk 0:01:30.1]} 24... Bxf7 {[%clk 0:01:03.7]} 25.
Rxf7 {[%clk 0:01:30.1]} 25... Bh6 {[%clk 0:01:04.2]} 26. Qd1 {[%clk 0:01:02.2]}
26... Be3+ {[%clk 0:00:54.7]} 27. Kh1 {[%clk 0:01:02]} 27... Qc5 {[%clk
0:00:40.3]} 28. Ng1 {[%clk 0:00:58.8]} 28... Rdg8 {[%clk 0:00:37.4]} 29. R1f5
{[%clk 0:00:34.4]} 29... Qd6 {[%clk 0:00:33.7]} 30. Qf3 {[%clk 0:00:22]} 30...
Kb8 {[%clk 0:00:32.4]} 31. Qe4 {[%clk 0:00:12.7]} 31... Rg3 {[%clk 0:00:24.2]}
32. Qe5 {[%clk 0:00:09.5]} 32... Qxe5 {[%clk 0:00:23.9]} 33. Rxe5 {[%clk
0:00:09.6]} 33... Rhg8 {[%clk 0:00:24.4]} 34. Ree7 {[%clk 0:00:08.6]} 34... Rxg2
{[%clk 0:00:15.9]} 35. Rxb7+ {[%clk 0:00:08.3]} 35... Kc8 {[%clk 0:00:16]} 36.
Rbc7+ {[%clk 0:00:08.4]} 36... Kd8 {[%clk 0:00:15.8]} 37. Rcd7+ {[%clk
0:00:08.7]} 37... Kc8 {[%clk 0:00:16]} 38. Rc7+ {[%clk 0:00:09]} 38... Kd8
{[%clk 0:00:16.3]} 39. Rcd7+ {[%clk 0:00:09.3]} 39... Kc8 {[%clk 0:00:16.6]} 40.
Rc7+ {[%clk 0:00:09.4]} 1/2-1/2

[Event "*** Titled Tuesday Blitz"]
[Site "Chess.com"]
[Date "2020.04.07"]
[Round "2"]
[White "attack2mateU"]
[Black "cuprichanin"]
[Result "1-0"]
[WhiteElo "2670"]
[BlackElo "2342"]
[TimeControl "180+1"]
[EndTime "13:19:14 PDT"]
[Termination "attack2mateU won by checkmate"]

1. e4 {[%clk 0:03:00.9]} 1... c5 {[%clk 0:02:57.7]} 2. Nf3 {[%clk 0:03:00.6]}
2... e6 {[%clk 0:02:57.2]} 3. d4 {[%clk 0:03:00.4]} 3... cxd4 {[%clk 0:02:58.1]}
4. Nxd4 {[%clk 0:03:00.7]} 4... a6 {[%clk 0:02:58.1]} 5. Nc3 {[%clk 0:03:00.6]}
5... Qc7 {[%clk 0:02:57.2]} 6. Bd3 {[%clk 0:02:59.9]} 6... Nc6 {[%clk 0:02:57]}
7. Nxc6 {[%clk 0:02:58.6]} 7... dxc6 {[%clk 0:02:57.9]} 8. O-O {[%clk
0:02:58.6]} 8... e5 {[%clk 0:02:57.9]} 9. f4 {[%clk 0:02:58.5]} 9... Nf6 {[%clk
0:02:55.3]} 10. Qf3 {[%clk 0:02:58.1]} 10... Bc5+ {[%clk 0:02:49.9]} 11. Kh1
{[%clk 0:02:57.7]} 11... h5 {[%clk 0:02:41.3]} 12. Qg3 {[%clk 0:02:55.2]} 12...
Ng4 {[%clk 0:02:23.9]} 13. f5 {[%clk 0:02:52.1]} 13... Bd7 {[%clk 0:02:15.2]}
14. Bg5 {[%clk 0:02:28.1]} 14... Nf6 {[%clk 0:02:07.5]} 15. Bh4 {[%clk 0:01:41]}
15... Kf8 {[%clk 0:01:23.1]} 16. a4 {[%clk 0:01:38.9]} 16... a5 {[%clk
0:01:20.8]} 17. Nd1 {[%clk 0:01:36.1]} 17... Re8 {[%clk 0:01:02.8]} 18. Nf2
{[%clk 0:01:35.7]} 18... b5 {[%clk 0:00:57.1]} 19. Nh3 {[%clk 0:01:29.4]} 19...
Ng4 {[%clk 0:00:48.9]} 20. Ng5 {[%clk 0:01:22.7]} 20... f6 {[%clk 0:00:45.5]}
21. Ne6+ {[%clk 0:01:04.8]} 21... Bxe6 {[%clk 0:00:41.2]} 22. fxe6 {[%clk
0:01:05.7]} 22... Rxe6 {[%clk 0:00:37.1]} 23. axb5 {[%clk 0:01:05.3]} 23... cxb5
{[%clk 0:00:36.6]} 24. Bxb5 {[%clk 0:01:06.2]} 24... Qb6 {[%clk 0:00:34.9]} 25.
Bc4 {[%clk 0:01:05.2]} 25... Rd6 {[%clk 0:00:32.9]} 26. Bd5 {[%clk 0:00:32.3]}
26... Ne3 {[%clk 0:00:28.6]} 27. Qxe5 {[%clk 0:00:31.9]} 27... Nxf1 {[%clk
0:00:27.3]} 28. Rxf1 {[%clk 0:00:32.8]} 28... Bd4 {[%clk 0:00:24.7]} 29. Qf5
{[%clk 0:00:32.8]} 29... Be5 {[%clk 0:00:23]} 30. Qxe5 {[%clk 0:00:32]} 30...
Qa6 {[%clk 0:00:16.8]} 31. Qf5 {[%clk 0:00:29.6]} 31... g6 {[%clk 0:00:13.5]}
32. Qf3 {[%clk 0:00:19.5]} 32... Kg7 {[%clk 0:00:13.5]} 33. e5 {[%clk
0:00:14.4]} 33... Rxd5 {[%clk 0:00:10.1]} 34. Bxf6+ {[%clk 0:00:14.6]} 34... Kh7
{[%clk 0:00:04.3]} 35. Bxh8 {[%clk 0:00:15]} 35... Kxh8 {[%clk 0:00:04.2]} 36.
Qf8+ {[%clk 0:00:14.7]} 36... Kh7 {[%clk 0:00:04.6]} 37. Rf7# {[%clk 0:00:15.6]}
1-0